{"text_format":"1","workbook":"xlsx","n_sheets":2,"sheets":["Pasiūlymas","Subtiekėjai ir priedai"],"not_rendered":{"charts":0,"images":0,"macros":1,"external_links":0,"defined_names":0,"comments":0,"pivot_tables":0},"unopened":[],"bounds":{"document_bytes":16777216,"sheet_cells":100000,"rows_first":2000,"rows_last":500,"rows_between":2000,"halvings":0,"cell_chars":16384,"cell_head_chars":4096},"cells_cut":0,"cells_raw":0,"read":"whole","date_system":"1900"}

{"sheet":"Pasiūlymas","index":0,"n_rows":98,"n_cols":7,"rows_kept":98,"cut":false,"hidden":false,"merged":[[27,0,27,5],[28,0,28,5],[24,0,24,5],[25,0,25,5],[26,0,26,5],[18,0,18,1],[18,2,18,5],[23,0,23,5],[19,0,19,1],[20,0,20,1],[19,2,19,5],[20,2,20,5],[22,0,22,5],[29,0,29,2],[29,3,29,5],[11,0,11,1],[11,2,11,5],[12,0,12,1],[12,2,12,5],[13,0,13,1],[13,2,13,5],[14,0,14,1],[14,2,14,5],[15,0,15,1],[15,2,15,5],[16,0,16,1],[16,2,16,5],[17,0,17,1],[17,2,17,5]]}
[]
["PIRKIMO SĄLYGŲ PRIEDAS \"PASIŪLYMŲ FORMA\""]
[]
["MEDICININĖS DUJOS"]
[]
["Kam:","Viešoji įstaiga CPO LT"]
[]
["Data:","2022-11-28"]
["Nr.:","GAS/2022-1"]
["Vieta:","Jonava"]
[]
["Tiekėjo pavadinimas / Ūkio subjektų grupės nariai:",null,"UAB \"GASCHEMA\""]
["Tiekėjo kodas (-ai):",null,304434538]
["Tiekėjo adresas (-ai):",null,"Jonalaukio k.1, Jonavos raj. sav. LT-55296"]
["Tiekėjo PVM mokėtojo kodas(-ai):",null,"LT100010600319"]
["Tiekėjo / Ūkio subjektų grupės atsakingo partnerio sąskaitos numeris, banko pavadinimas ir banko kodas (-ai):",null,"LT572140030002837811, Luminor Bank AS Lietuvos skyrius, banko kodas 21400"]
["Asmens atsakingo už pasiūlymą vardas, pavardė:",null,"Sigita Zigmantienė"]
["Asmens atsakingo už pasiūlymą telefono numeris, el. pašto adresas:",null,"Tel. +370-677-77896, El.paštas: s.zigmantiene@gaschema.lt "]
["Tiekėjo / Ūkio subjektų grupės, laimėjimo atveju, pasirašančio sutartį asmens vardas, pavardė, pareigos:",null,"Generalinis direktorius Valdemaras Vareika"]
["Tiekėjo / Ūkio subjektų grupės, laimėjimo atveju, už sutarties vykdymą atsakingo asmens vardas, pavardė, telefono numeris, elektroninio pašto adresas:",null,"Medicininių dujų vadybininkė Sigita Zigmantienė, +370-677-77896, s.zigmantiene@gaschema.lt "]
["(1) Tiekėjo / Ūkio subjektų grupės narių, (2) ūkio subjektų, kurių pajėgumais remiamasi, ir (3) jei pašalinimo pagrindai taikomi visiems subtiekėjams - subtiekėjų, kolegialaus priežiūros organo (Stebėtojų tarybos) ir (ar) kolegialaus valdymo organo (Valdybos) narių sąrašas (jei sudaryta) ir (ar) asmuo, kuriam suteikti VPĮ 46 str. 2 d. 2 p. numatyti įgaliojimai",null,"***",null,null,null,{"$f":"IF((SUMPRODUCT(--(C21=\"\"))>0), \"Privaloma užpildyti, kai taikomi pašalinimo pagrindai\", \"\")","v":""}]
[]
["Tiekėjo patvirtinimai:"]
["1. Šiuo pasiūlymu pažymime, kad sutinkame su visomi pirkimo sąlygomis, nustatytomis:"]
["1.1. viešojo pirkimo dokumentuose"]
["1.2. kituose pirkimo dokumentuose (jų paaiškinimuose, papildymuose)."]
["2. Patvirtiname, kad informacija ir duomenys, pateikti pasiūlyme, yra teisingi ir apima viską, ko reikia tinkamam sutarties įvykdymui"]
["3. Patvirtiname, kad jei pasiūlyme nenurodyti kolegialaus priežiūros/valdymo organų nariai, šie organai juridiniuose asmenyse nėra sudaryti (taikoma, kai pirkimo dokumentuose nustatyti pašalinimo pagrindai)."]
["4. Pasiūlymas galioja iki termino, nustatyto pirkimo dokumentuose."]
["5. Tais atvejais, kai pagal galiojančius teisės aktus tiekėjui nereikia mokėti PVM, jis nurodo priežastis, dėl kurių PVM nemoka:",null,null,"***"]
["6. Tiekėjas kainas pateikia, nurodydamas ne daugiau skaičių po kablelio, nei leidžiama pirkimo dokumentuose."]
["1. DALIS","MEDICININIS DEGUONIS, O2"]
[]
["Tiekėjo pasiūlymas:"]
["Nr.","Pavadinimas","Maksimalus kiekis","Mato vienetas","Vnt. įkainis be PVM, Eur","Suma be PVM, Eur","Firminis prekės pavadinimas, gamintojas. Vaistinio preparato registracijos numeris (jei taikoma)"]
["1.","Medicininis deguonis, O2"]
["1.1.","Medicininis deguonis (50ltr±3ltr)",400,"balion.",37.5,{"$f":"IF(ISBLANK(E37),\"\", PRODUCT(C37,E37))","v":15000},"Deguonis Gaschema 100% suslėgtosios medicininės dujos LT/1/19/4351/008 (50l, 10,7m3, 200 bar)\n\n"]
["1.2.","Aukšto slėgio žarna 1,5 m (balionų pajungimui)",2,"vnt.",170,{"$f":"IF(ISBLANK(E38),\"\", PRODUCT(C38,E38))","v":340},"***"]
["1.3.","Medicininis deguonis (10ltr±1ltr)",70,"balion.",32.5,{"$f":"IF(ISBLANK(E39),\"\", PRODUCT(C39,E39))","v":2275},"Deguonis Gaschema 100% suslėgtosios medicininės dujos LT/1/19/4351/006 (10l, 2,14m3, 200 bar)"]
["1.4.","Medicininis deguonis (3.0ltr±0,5ltr)",1000,"balion.",29,{"$f":"IF(ISBLANK(E40),\"\", PRODUCT(C40,E40))","v":29000},"Deguonis Gaschema 100% suslėgtosios medicininės dujos LT/1/19/4351/013 (3l, 0,64m3, 200 bar su daugiafunkciniu ventiliu MediVital)\n"]
[null,null,null,null,"Suma be PVM",{"$f":"IF((SUMPRODUCT(--(F37:F40=\"\"))>0), \"\", SUM(F37:F40))","v":46615},{"$f":"IF((SUMPRODUCT(--(F37:F40=\"\"))>0), \"Neužpildytos visų objektų kainos\", \"\")","v":""}]
[null,null,null,null,"PVM suma (taikomas 5 proc. PVM tarifas)",{"$f":"+(F37+F39+F40)*0.05+F38*0.21","v":2385.15}]
[null,null,null,null,"Suma su PVM",{"$f":"IF(ISBLANK(F42), \"\", SUM(F41:F42))","v":49000.15}]
[]
[]
[]
["2. DALIS","ANGLIARŪGŠTĖ, CO2"]
[]
["Tiekėjo pasiūlymas:"]
["Nr.","Pavadinimas","Maksimalus kiekis","Mato vienetas","Vnt. įkainis be PVM, Eur","Suma be PVM, Eur","Firminis prekės pavadinimas, gamintojas"]
["2.","Angliarūgštė, CO2"]
["2.1.","Angliarūgštė, CO2  (50ltr±3ltr)",30,"balion.",27.2,{"$f":"IF(ISBLANK(E52),\"\", PRODUCT(C52,E52))","v":816},"Karbodinas (CO2 E290) balionuose, 37 kg (50l)"]
["2.2.","Angliarūgštė, CO2 (13,4ltr±0,5ltr)",6,"sifoninis balion.",14.88,{"$f":"IF(ISBLANK(E53),\"\", PRODUCT(C53,E53))","v":89.28},"Karbodinas (CO2 E290) balionuose, sifoninis 10 kg (13,4)"]
["2.3.","Angliarūgštė, CO2 (20ltr±1ltr)",5,"balion.",17.52,{"$f":"IF(ISBLANK(E54),\"\", PRODUCT(C54,E54))","v":87.6},"Anglies dioksidas, CO2 (20l, 14,4kg)      "]
[null,null,null,null,"Suma be PVM",{"$f":"IF((SUMPRODUCT(--(F52:F54=\"\"))>0), \"\", SUM(F52:F54))","v":992.88},{"$f":"IF((SUMPRODUCT(--(F52:F54=\"\"))>0), \"Neužpildytos visų objektų kainos\", \"\")","v":""}]
[null,null,null,null,"PVM suma (taikomas 21 proc. PVM tarifas)",{"$f":"+F55*0.21","v":208.50479999999999}]
[null,null,null,null,"Suma su PVM",{"$f":"IF(ISBLANK(F56), \"\", SUM(F55:F56))","v":1201.3848}]
[]
[]
[]
[]
[]
["4. DALIS","AZOTAS (SKYSTAS), N2"]
[]
["Tiekėjo pasiūlymas:"]
["Nr.","Pavadinimas","Maksimalus kiekis","Mato vienetas","Vnt. įkainis be PVM, Eur","Suma be PVM, Eur","Firminis prekės pavadinimas, gamintojas"]
["4.","Azotas (skystas), N2"]
["4.1.","Azotas (skystas), N2",240,"kg",2.2999999999999998,{"$f":"IF(ISBLANK(E68),\"\", PRODUCT(C68,E68))","v":552},"Skystas azotas diuaro induose"]
[null,null,null,null,"Suma be PVM",{"$f":"IF(F68=\"\",\"\",SUM(F68:F68))","v":552},{"$f":"IF(F68=\"\",\"Neužpildytos visos objektų kainos\",\"\")","v":""}]
[null,null,null,null,"PVM suma (taikomas 21 proc. PVM tarifas)",{"$f":"+F69*0.21","v":115.92}]
[null,null,null,null,"Suma su PVM",{"$f":"IF(ISBLANK(F70), \"\", SUM(F69:F70))","v":667.92}]
[]
[]
[]
[]
["7. DALIS","TECHNINIS AZOTAS (20LTR±1LTR)"]
[]
["Tiekėjo pasiūlymas:"]
["Nr.","Pavadinimas","Maksimalus kiekis","Mato vienetas","Vnt. įkainis be PVM, Eur","Suma be PVM, Eur","Firminis prekės pavadinimas, gamintojas"]
["7.","Techninis azotas (20ltr±1ltr)"]
["7.1.","Techninis azotas (20ltr±1ltr)",5,"balion.",14.05,{"$f":"IF(ISBLANK(E81),\"\", PRODUCT(C81,E81))","v":70.25},"Dujinis azotas 4.6 balionuose, 3,9 m3 (20/200)"]
[null,null,null,null,"Suma be PVM",{"$f":"IF(F81=\"\",\"\",SUM(F81:F81))","v":70.25},{"$f":"IF(F81=\"\",\"Neužpildytos visos objektų kainos\",\"\")","v":""}]
[null,null,null,null,"PVM suma (taikomas 21 proc. PVM tarifas)",{"$f":"+F82*0.21","v":14.7525}]
[null,null,null,null,"Suma su PVM",{"$f":"IF(ISBLANK(F83), \"\", SUM(F82:F83))","v":85.002499999999998}]
[]
[]
[]
["8. DALIS","PROPANAS-BUTANAS"]
[]
["Tiekėjo pasiūlymas:"]
["Nr.","Pavadinimas","Maksimalus kiekis","Mato vienetas","Vnt. įkainis be PVM, Eur","Suma be PVM, Eur","Firminis prekės pavadinimas, gamintojas"]
["8.","Propanas-butanas"]
["8.1.","Propanas-butanas (41ltr±2ltr)",3,"balion.",33.35,{"$f":"IF(ISBLANK(E93),\"\", PRODUCT(C93,E93))","v":100.05000000000001},"Propan-butanas balionuose, 19 kg (46)"]
["8.2.","Propanas-butanas (11ltr±1ltr).",4,"balion.",22.17,{"$f":"IF(ISBLANK(E94),\"\", PRODUCT(C94,E94))","v":88.68},"Propan-butanas su akcizu balionuose, 11 kg (27)"]
["8.3.","Propanas-butanas (5ltr±1ltr)",1,"balion.",18,{"$f":"IF(ISBLANK(E95),\"\", PRODUCT(C95,E95))","v":18},"Propan-butanas balionuose, 2 kg (5)"]
[null,null,null,null,"Suma be PVM",{"$f":"IF((SUMPRODUCT(--(F93:F95=\"\"))>0), \"\", SUM(F93:F95))","v":206.73000000000002},{"$f":"IF((SUMPRODUCT(--(F93:F95=\"\"))>0), \"Neužpildytos visų objektų kainos\", \"\")","v":""}]
[null,null,null,null,"PVM suma (taikomas 21 proc. PVM tarifas)",{"$f":"+F96*0.21","v":43.4133}]
[null,null,null,null,"Suma su PVM",{"$f":"IF(ISBLANK(F97), \"\", SUM(F96:F97))","v":250.14330000000001}]

{"sheet":"Subtiekėjai ir priedai","index":1,"n_rows":100,"n_cols":11,"rows_kept":100,"cut":false,"hidden":false,"merged":[[23,0,23,1],[22,0,22,1],[21,0,21,1],[20,0,20,1],[19,0,19,1],[28,0,28,1],[27,0,27,1],[26,0,26,1],[25,0,25,1],[24,0,24,1],[23,2,23,4],[22,2,22,4],[21,2,21,4],[20,2,20,4],[19,2,19,4],[28,2,28,4],[27,2,27,4],[26,2,26,4],[25,2,25,4],[24,2,24,4],[23,5,23,7],[22,5,22,7],[21,5,21,7],[20,5,20,7],[19,5,19,7],[28,5,28,7],[27,5,27,7],[26,5,26,7],[25,5,25,7],[24,5,24,7],[23,8,23,9],[22,8,22,9],[21,8,21,9],[20,8,20,9],[19,8,19,9],[28,8,28,9],[27,8,27,9],[26,8,26,9],[25,8,25,9],[24,8,24,9],[16,0,16,10],[18,8,18,9],[18,5,18,7],[18,2,18,4],[18,0,18,1],[13,0,13,1],[12,0,12,1],[11,0,11,1],[10,0,10,1],[13,8,13,9],[12,8,12,9],[11,8,11,9],[10,8,10,9],[4,0,4,1],[5,5,5,7],[5,0,5,1],[9,0,9,1],[13,2,13,4],[12,2,12,4],[11,2,11,4],[10,2,10,4],[9,2,9,4],[13,5,13,7],[12,5,12,7],[11,5,11,7],[10,5,10,7],[9,5,9,7],[1,0,2,10],[30,0,30,9],[14,5,14,7],[8,5,8,7],[7,5,7,7],[6,5,6,7],[14,8,14,9],[8,8,8,9],[7,8,7,9],[6,8,6,9],[14,0,14,1],[8,0,8,1],[7,0,7,1],[6,0,6,1],[14,2,14,4],[8,2,8,4],[7,2,7,4],[9,8,9,9],[6,2,6,4],[5,2,5,4],[5,8,5,9],[4,8,4,9],[4,5,4,7],[4,2,4,4],[32,0,32,9],[34,7,34,9],[34,1,34,6],[45,7,45,9],[42,7,42,9],[37,7,37,9],[36,7,36,9],[35,7,35,9],[44,7,44,9],[43,7,43,9],[41,7,41,9],[40,7,40,9],[39,7,39,9],[38,7,38,9],[45,1,45,6],[44,1,44,6],[47,0,47,9],[52,4,52,9],[50,4,50,9],[52,0,52,3],[50,0,50,3],[38,1,38,6],[37,1,37,6],[36,1,36,6],[35,1,35,6],[43,1,43,6],[42,1,42,6],[41,1,41,6],[40,1,40,6],[39,1,39,6]]}
[]
["Ūkio subjektai (įskaitant kvazisubtiekėjus - fiziniai asmenys, kuriuos ketinama įdarbinti pirkimo laimėjimo atveju), kurių pajėgumais tiekėjas remiasi, kad atitiktų keliamus kvalifikacijos reikalavimus:"]
[]
[]
["Pavadinimas*",null,"Kodas, adresas",null,null,"Perduodami įsipareigojimai",null,null,"Perduodamų įsipareigojimų dalis nuo visos pirkimo sutarties (Eur arba %)",null,"Kval. Reikalavimo Nr."]
["***",null,"***",null,null,"***",null,null,"***",null,"***"]
[]
[]
[]
[]
[]
[]
[]
[]
[]
[]
["Subtiekėjams / subteikėjams / subrangovams numatomos perduoti veiklos (privaloma nurodyti) ir šių ūkio subjektų pavadinimai (jei žinomi):"]
[]
["Pavadinimas",null,"Kodas, adresas",null,null,"Perduodama veikla*",null,null,"Perduodamos veiklos dalis nuo visos pirkimo sutarties (Eur arba %)"]
["***",null,"***",null,null,"***",null,null,"***"]
[]
[]
[]
[]
[]
[]
[]
[]
[]
[]
[]
[]
["Kartu su pasiūlymu pateikiami šie dokumentai:"]
[]
["Nr.","Dokumento  pavadinimas",null,null,null,null,null,"Dokumentas yra konfidencialus? Taip/Ne"]
[1,"Jungtinės veiklos kopija (jei taikoma)",null,null,null,null,null,"***"]
[2,"Europos bendrasis viešųjų pirkimų dokumentas",null,null,null,null,null,"1 PRIEDAS TAIP (Nes yra nurodytas įgalioto asmens namų adresas)"]
[3,"Subtiekimo sutartis, ketinimų protokolas, preliminarios sutartys ar kiti dokumentai, patvirtinantys, kad laimėjus pirkimą tiekėjui bus prieinami kitų ūkio subjektų ištekliai (jei pasitelkiami kvalifikacijos atitikimui)",null,null,null,null,null,"***"]
[4,"Pasiūlymo atitikimą pirkimo sąlygų techninei specifikacijai pagrindžiantys dokumentai",null,null,null,null,null,"9-12 PRIEDAS-NE, 13-17 PRIEDAS-TAIP (vidiniai įmonės dokumentai), 18 PRIEDAS-NE, 19 PRIEDAS-TAIP (vidinis įmonės dokumentas), 20-46 PRIEDAI- NE, 47 PRIEDAS-TAIP (vidinis įmonės dokumentas), 48 PRIEDAS-NE, 49 PRIEDAS- TAIP (pagal patvirtintą vidinę įmonės tvarką valdybos narių pavardės yra konfidenciali informacija), 50 PRIEDAS- NE."]
[5,"2 PRIEDAS Įmonės registracijos pažymėjimas",null,null,null,null,null,"NE"]
[6,"3 PRIEDAS Licencija užsiimti farmacine veikla (GGP pažymėjimas)",null,null,null,null,null,"NE"]
[7,"4 PRIEDAS BreLUX registracijos pažymėjimas",null,null,null,null,null,"NE"]
[8,"5 PRIEDAS Deguonis Gaschema 100% registracijos pažymėjimas",null,null,null,null,null,"NE"]
[9,"6 PRIEDAS Deguonis Gaschema 100% registracijos pažymėjimas (MediVital)",null,null,null,null,null,"NE"]
[10,"7 PRIEDAS Diazoto oksidas Gaschema registracijos pažymėjimas",null,null,null,null,null,"NE"]
[11,"8 PRIEDAS Įgaliojimas",null,null,null,null,null,"TAIP (Nes yra nurodytas asmens kodas)"]
[]
["Pasiūlyme nurodyta Prekės kaina, išskyrus jos sudedamąsias dalis, subtiekėjai, taip pat kita informacija, kuri teisės aktų nustatyta tvarka turi būti skelbiama arba kitokiu būdu viešai prieinama visuomenei, nėra laikoma konfidencialia informacija. Konfidencialią informaciją sudaro, visų pirma, komercinė (gamybinė) paslaptis ir konfidencialieji pasiūlymų aspektai. Informacija, kurią viešai skelbti įpareigoja Lietuvos Respublikos įstatymai, negali būti tiekėjo nurodoma kaip konfidenciali, todėl, tiekėjui nurodžius tokią informaciją kaip konfidencialią, perkančioji organizacija turi teisę ją skelbti. Jei tiekėjas nenurodo konfidencialios informacijos, laikoma, kad konfidencialios informacijos tiekėjo pasiūlyme nėra. Vadovaujantis Informacijos viešinimo Centrinėje viešųjų pirkimų informacinėje sistemoje tvarkos aprašu, patvirtintu Viešųjų pirkimų tarnybos direktoriaus 2017 m. birželio 19 d. įsakymu Nr. 1S-91 „Dėl Informacijos viešinimo Centrinėje viešųjų pirkimų informacinėje sistemoje tvarkos aprašo patvirtinimo“, perkančioji organizacija laimėjusio dalyvio pasiūlymą, išskyrus informaciją, kurią tiekėjas nurodė kaip konfidencialią, paskelbs CVP IS."]
[]
[]
["Tiekėjo arba jo įgalioto asmens pareigų pavadinimas:",null,null,null,"Medicininių dujų vadybininkė"]
[]
["Pasirašančio asmens vardas ir pavardė:",null,null,null,"Sigita Zigmantienė"]
[]
[]
[]
[]
[]
[]
[]
[]
[]
[]
[]
[]
[]
[]
[]
[]
[]
[]
[]
[]
[]
[]
[]
[]
[]
[]
[]
[]
[]
[]
[]
[]
[]
[]
[]
[]
[]
[]
[]
[]
[]
[]
[]
[]
[]
[]
["8541 2022-11-03 20:40:17"]